bitfinex-derivatives/quotes_SOLF0:USTF0_20250507
["timestamp","ask_amount","ask_price","bid_price","bid_amount"]
[1746584450365,6.7519,148.12,148.09,6.7527]
[1746584450869,6.7519,148.12,148.1,6.7524]
[1746584451272,6.7519,148.12,148.08,32.8]
[1746584451566,6.7519,148.12,148.09,6.7528]
[1746584453773,32.66,148.17,148.09,6.7528]
[1746584454275,6.7516,148.13,148.09,6.7528]
[1746584454877,6.7516,148.13,148.1,6.7524]
[1746584455178,6.7509,148.14,148.08,32.8]
[1746584455375,6.7509,148.14,148.11,6.7517]
[1746584455576,32.6,148.16,148.08,32.8]
[1746584455778,6.7504,148.15,148.08,32.8]
[1746584456078,6.7504,148.15,148.12,6.7513]
[1746584456273,6.7505,148.15,148.12,6.7513]
[1746584456671,6.7505,148.15,148.08,32.8]
[1746584456881,6.7505,148.15,148.13,6.751]
[1746584457482,39.3498,148.16,148.14,6.7506]
[1746584458076,39.3498,148.16,148.13,6.7509]
[1746584458279,6.7503,148.15,148.13,6.7509]
[1746584458578,32.6,148.16,148.13,6.7509]
[1746584459278,39.35,148.16,148.13,6.7509]
[1746584462375,6.75,148.16,148.13,6.7509]
[1746584462875,32.56,148.18,148.09,7.18244976]
[1746584463074,32.56,148.18,148.08,65.36]
[1746584463270,6.7505,148.15,148.12,6.7513]
[1746584467388,6.7499,148.16,148.13,6.7508]
[1746584468176,6.7503,148.15,148.12,6.7513]
[1746584468781,32.56,148.18,148.12,6.7513]
[1746584469782,6.7505,148.15,148.12,6.7513]
[1746584475090,37.15530569,148.18,148.1,6.7522]
[1746584475292,4.59662605,148.15,148.1,6.7522]
[1746584475784,6.7509,148.14,148.11,6.7519]
[1746584478689,6.7509,148.14,148.08,24.35872317]
[1746584478887,6.7509,148.14,148.1,4.59662605]
[1746584479587,6.7511,148.13,148.11,6.7518]
[1746584482188,6.7509,148.14,148.11,6.7518]
[1746584482989,6.7504,148.15,148.1,4.59662605]
[1746584483191,32.46,148.16,148.12,4.59662605]
[1746584484794,39.21,148.16,148.13,6.7508]
[1746584485890,6.75,148.16,148.13,6.7508]
[1746584486191,266.54208982,148.17,148.12,4.59662605]
[1746584486492,266.54208982,148.17,148.12,37.07662605]
[1746584486696,273.29138982,148.17,148.15,6.75]
[1746584486992,273.29138982,148.17,148.12,25.26055452]
[1746584487188,266.54208982,148.17,148.13,4.59662605]
[1746584487491,240.85148982,148.17,148.13,4.59662605]
[1746584487984,240.85148982,148.17,148.14,6.7506]
[1746584488189,240.85148982,148.17,148.13,4.59662605]
[1746584488692,240.85148982,148.17,148.14,4.59662605]
[1746584488998,240.85148982,148.17,148.15,6.75]
[1746584493395,234.10208982,148.17,148.16,6.7497]
[1746584497107,234.10208982,148.17,148.13,4.59662605]
[1746584497801,6.75,148.16,148.13,11.34742605]
[1746584498000,6.75,148.16,148.13,4.59662605]
[1746584498306,6.75,148.16,148.12,20.9478963]
[1746584498506,6.75,148.16,148.13,13.28310252]
[1746584499405,6.75,148.16,148.13,6.7508]
[1746584500009,6.75,148.16,148.14,13.28338007]
[1746584500410,6.75,148.16,148.14,6.7506]
[1746584501209,6.75,148.16,148.13,6.7509]
[1746584501403,6.75,148.16,148.14,6.53266086]
[1746584502203,6.75,148.16,148.13,6.7509]
[1746584502404,6.7504,148.15,148.13,6.7509]
[1746584504308,6.7499,148.16,148.13,6.7509]
[1746584505607,240.85168982,148.17,148.14,6.7504]
[1746584505808,240.85168982,148.17,148.12,20.9478963]
[1746584506009,240.85168982,148.17,148.13,6.53221937]
[1746584506408,240.85168982,148.17,148.13,11.12884542]
[1746584506604,240.85168982,148.17,148.14,6.53221937]
[1746584507001,240.85168982,148.17,148.15,6.7501]
[1746584507712,234.10208982,148.17,148.16,6.7497]
[1746584509404,234.10208982,148.17,148.15,6.75]
[1746584509912,240.85158982,148.17,148.15,6.75]
[1746584512114,240.85158982,148.17,148.14,6.7504]
[1746584512819,6.7505,148.15,148.12,20.9478963]
[1746584513110,234.10208982,148.17,148.13,6.53379392]
[1746584513313,4.59662605,148.16,148.13,6.53379392]
[1746584513515,4.59662605,148.16,148.12,6.7514]
[1746584514416,6.7503,148.15,148.12,6.7514]
[1746584514813,6.7503,148.15,148.13,6.53191167]
[1746584515211,6.7507,148.14,148.13,6.53191167]
[1746584516310,6.7512,148.13,148.09,36.89662605]
[1746584516515,4.59662605,148.16,148.1,6.82964664]
[1746584516718,4.59662605,148.16,148.11,13.28451072]
[1746584516912,6.7509,148.14,148.11,13.28451072]
[1746584517216,6.7509,148.14,148.11,6.7517]
[1746584517811,6.7511,148.13,148.11,6.7517]
[1746584518016,6.7511,148.13,148.1,6.7523]
[1746584518217,32.26,148.14,148.09,36.89662605]
[1746584518421,6.7519,148.12,148.11,6.52937259]
[1746584519316,6.7519,148.12,148.08,6.7531]
[1746584519518,6.7524,148.11,148.08,6.7531]
[1746584519818,6.7524,148.11,148.09,6.53037615]
[1746584520320,6.7524,148.11,148.1,6.53037615]
[1746584521019,6.7524,148.11,148.08,6.7531]
[1746584521518,6.7524,148.11,148.09,6.52894817]
[1746584521916,6.7524,148.11,148.1,6.52894817]
[1746584522619,6.7524,148.11,148.08,6.7531]
[1746584522821,6.7525,148.1,148.09,6.53203944]
[1746584523220,4.59662605,148.12,148.06,36.89662605]
[1746584523519,6.7534,148.08,148.06,36.89662605]
[1746584523722,36.83662605,148.1,148.05,159.59402872]
[1746584523915,36.83662605,148.1,148.06,6.52677425]
[1746584524320,6.7542,148.07,148.06,6.52677425]
[1746584524516,36.83662605,148.1,148.03,43.67212605]
[1746584525220,36.83662605,148.1,148.03,36.91662605]
[1746584525413,32.24,148.1,148.05,4.59662605]
[1746584525621,38.9926,148.1,148.07,6.7537]
[1746584527622,32.24,148.1,148.08,6.7531]
[1746584528120,6.7522,148.11,148.08,6.7531]
[1746584529923,32.32,148.15,148.07,32.32]
[1746584530120,32.22,148.14,148.07,32.32]
[1746584530424,6.7518,148.12,148.09,6.7527]
[1746584531222,32.22,148.14,148.07,32.32]
[1746584532221,32.22,148.14,148.07,39.0736]
[1746584532418,32.22,148.14,148.07,32.32]
[1746584533017,32.22,148.14,148.08,6.7533]
[1746584533524,32.22,148.14,148.09,6.7527]
[1746584533822,32.32,148.15,148.07,32.32]
[1746584534013,6.7513,148.13,148.1,6.7522]
[1746584535324,6.7513,148.13,148.07,38.6656]
[1746584535619,6.7509,148.14,148.07,38.6656]
[1746584536024,6.7509,148.14,148.11,6.7517]
[1746584537718,32.18,148.15,148.09,7.18474077]
[1746584538028,64.48,148.18,148.09,7.18474077]
[1746584538216,6.7504,148.15,148.12,6.7513]
[1746584538720,266.26208982,148.17,148.11,6.7517]
[1746584538923,6.7509,148.14,148.11,6.7517]
[1746584539821,6.7512,148.13,148.11,6.7517]
[1746584540026,266.26208982,148.17,148.12,6.7514]
[1746584540529,266.26208982,148.17,148.08,32.16]
[1746584540825,234.10208982,148.17,148.11,32.16]
[1746584541027,234.10208982,148.17,148.13,6.751]
[1746584541528,6.75,148.16,148.13,6.751]
[1746584545034,240.85158982,148.17,148.14,6.7506]
[1746584545230,32.16,148.22,148.11,32.16]
[1746584545530,32.12,148.21,148.16,6.7497]
[1746584545727,6.7486,148.19,148.16,6.7497]
[1746584547430,6.7489,148.18,148.15,6.75]
[1746584547729,32.12,148.21,148.12,6.3061]
[1746584547931,32.12,148.21,148.12,4.3277]
[1746584548229,6.7497,148.17,148.13,6.7509]
[1746584548731,6.7497,148.17,148.14,6.7505]
[1746584548930,6.2931,148.2,148.12,4.3277]
[1746584549231,32.12,148.21,148.12,4.3277]
[1746584549620,6.7487,148.19,148.12,4.3277]
[1746584550337,6.7487,148.19,148.16,6.7495]
[1746584551431,6.7489,148.18,148.16,6.7495]
[1746584551727,32.1,148.2,148.16,6.7495]
[1746584552032,6.7484,148.19,148.16,6.7495]
[1746584555037,6.7488,148.18,148.16,6.7495]
[1746584555335,32.08,148.21,148.12,4.3277]
[1746584555732,6.7495,148.17,148.14,6.7504]
[1746584556428,6.7498,148.16,148.14,6.7504]
[1746584557133,6.7498,148.16,148.13,6.751]
[1746584557436,6.7503,148.15,148.13,6.751]
[1746584557838,6.75,148.16,148.13,6.751]
[1746584559233,6.75,148.16,148.14,6.7506]
[1746584559534,38.8095,148.17,148.14,6.7506]
[1746584560740,38.8095,148.17,148.11,32.16]
[1746584561439,38.8095,148.17,148.14,6.7502]
[1746584562138,6.7495,148.17,148.11,32.16]
[1746584562531,6.7495,148.17,148.14,6.7504]
[1746584563041,6.7498,148.16,148.14,6.7504]
[1746584563342,32.04,148.19,148.14,6.7504]
[1746584563841,6.7496,148.17,148.14,6.7504]
[1746584566545,6.7496,148.17,148.15,6.7502]
[1746584567045,6.7496,148.17,148.14,6.7504]
[1746584569144,6.7496,148.17,148.15,6.7502]
[1746584569444,6.7496,148.17,148.11,32.16]
[1746584569644,6.7498,148.16,148.14,6.7505]
[1746584570643,6.7498,148.16,148.13,6.7509]
[1746584572246,6.7498,148.16,148.14,6.7507]
[1746584572545,6.7495,148.17,148.14,6.7507]
[1746584575043,6.7499,148.16,148.14,6.7507]
[1746584575250,32.02,148.19,148.14,6.7507]
[1746584575947,6.75,148.16,148.14,6.7507]
[1746584577245,6.7495,148.17,148.11,32.16]
[1746584577451,32.02,148.19,148.15,6.7502]
[1746584577951,6.7492,148.18,148.15,6.7502]
[1746584578548,6.7493,148.17,148.14,6.7504]
[1746584578943,6.7493,148.17,148.11,32.16]
[1746584579151,6.7493,148.17,148.15,6.7501]
[1746584579547,6.7498,148.16,148.13,6.7509]
[1746584584557,32.02,148.19,148.11,32.16]
[1746584584754,6.3149,148.18,148.11,32.16]
[1746584584956,6.3149,148.18,148.07,31.98]
[1746584585150,6.7516,148.12,148.09,6.7527]
[1746584585549,31.92,148.13,148.07,31.98]
[1746584585750,6.7526,148.1,148.08,6.7532]
[1746584585960,6.7526,148.1,148.07,31.98]
[1746584586256,6.7526,148.1,148.07,38.7335]
[1746584587758,6.7526,148.1,148.08,6.7533]
[1746584587961,6.7522,148.11,148.08,6.7533]
[1746584589059,31.92,148.13,148.07,31.98]
[1746584589455,6.7527,148.1,148.07,31.98]
[1746584589650,6.7527,148.1,148.07,38.7335]
[1746584590058,6.7527,148.1,148.07,31.98]
[1746584590262,6.7522,148.11,148.08,6.7532]
[1746584590659,31.92,148.13,148.07,31.98]
[1746584590857,38.6713,148.13,148.07,31.98]
[1746584591156,31.92,148.13,148.08,13.9917751]
[1746584591354,31.92,148.13,148.08,11.50794077]
[1746584592463,38.6712,148.13,148.1,6.752]
[1746584595263,38.6712,148.13,148.11,6.752]
[1746584597658,6.7517,148.12,148.08,4.3232]
[1746584597852,31.92,148.13,148.08,4.3232]
[1746584598057,38.6713,148.13,148.1,6.7521]
[1746584599259,6.7513,148.13,148.1,6.7521]
[1746584599963,6.7517,148.12,148.1,6.7521]
[1746584600161,31.86,148.15,148.07,38.7337]
[1746584600763,6.7527,148.1,148.07,38.7337]
[1746584602163,6.7527,148.1,148.08,6.7534]
[1746584603760,31.86,148.11,148.07,31.98]
[1746584604665,31.86,148.11,148.09,6.7526]
[1746584605364,31.86,148.11,148.1,6.7525]
[1746584607168,31.82,148.14,148.11,6.7517]
[1746584607664,6.7511,148.13,148.11,6.7517]
[1746584610765,6.7511,148.13,148.1,6.7523]
[1746584614967,31.8,148.15,148.08,9.30524077]
[1746584615267,31.78,148.17,148.09,6.82237239]
[1746584615467,31.78,148.17,148.08,9.30524077]
[1746584615669,6.7504,148.15,148.12,6.7511]
[1746584616668,6.75,148.16,148.13,6.7509]
[1746584621680,6.7504,148.15,148.12,6.7513]
[1746584621972,31.76,148.17,148.11,31.84]
[1746584622163,33.9028,148.17,148.11,31.84]
[1746584622567,33.9028,148.17,148.1,6.7523]
[1746584622767,6.7514,148.13,148.1,6.7523]
[1746584622969,31.74,148.13,148.08,33.9605]
[1746584623175,31.74,148.13,148.08,31.84]
[1746584623373,6.7523,148.11,148.08,31.84]
[1746584623673,31.74,148.13,148.08,38.5932]
[1746584623872,31.74,148.13,148.08,31.84]
[1746584624475,6.7523,148.11,148.08,31.84]
[1746584624671,6.7523,148.11,148.08,38.5931]
[1746584628375,6.7526,148.1,148.08,38.5931]
[1746584628878,6.7526,148.1,148.08,31.84]
[1746584629584,6.7526,148.1,148.07,6.7536]
[1746584631484,31.74,148.13,148.07,6.7536]
[1746584632180,6.753,148.09,148.07,6.7536]
[1746584632380,31.74,148.13,148.06,154.48632949]
[1746584632781,6.7538,148.08,148.06,154.48632949]
[1746584633777,6.7539,148.07,148.06,154.48632949]
[1746584635079,6.7539,148.07,148.04,38.4551]
[1746584635286,6.7544,148.06,148.04,38.4551]
[1746584635772,6.754,148.07,148.04,38.4551]
[1746584641290,6.754,148.07,148.05,6.7547]
[1746584642790,6.754,148.07,148.04,38.455]
[1746584643093,6.754,148.07,148.04,31.7]
[1746584643386,6.7536,148.08,148.04,31.7]
[1746584643589,31.66,148.1,148.04,31.7]
[1746584644190,31.66,148.1,148.06,6.754]
[1746584644488,31.7,148.11,148.04,31.7]
[1746584644678,6.7537,148.08,148.05,6.7544]
[1746584647394,63.36,148.11,148.04,38.4552]
[1746584647686,63.36,148.11,148.04,31.7]
[1746584647993,6.7545,148.06,148.04,31.7]
[1746584648795,6.7541,148.07,148.04,38.4552]
[1746584649795,63.36,148.11,148.04,31.7]
[1746584649994,31.7,148.11,148.04,31.7]
[1746584650189,6.7524,148.11,148.08,6.7532]
[1746584650494,31.64,148.12,148.08,6.7532]
[1746584650801,38.3917,148.12,148.09,6.7529]
[1746584651092,31.72,148.15,148.05,4.1291]
[1746584651093,31.62,148.13,148.05,4.1291]
[1746584651284,38.3714,148.13,148.05,4.1291]
[1746584651489,38.3714,148.13,148.09,6.7527]
[1746584651793,38.3714,148.13,148.05,4.1291]
[1746584651990,38.3714,148.13,148.1,6.7522]
[1746584654198,6.7514,148.13,148.1,6.7522]
[1746584654498,38.3714,148.13,148.1,6.7522]
[1746584660599,6.7516,148.12,148.1,6.7522]
[1746584660903,31.62,148.13,148.1,6.7522]
[1746584661299,6.7517,148.12,148.1,6.7522]
[1746584662504,38.3713,148.13,148.1,6.7522]
[1746584667315,6.7517,148.12,148.09,6.7527]
[1746584669419,6.752,148.11,148.08,6.7532]
[1746584670418,31.62,148.13,148.05,4.1291]
[1746584670619,6.7529,148.09,148.04,31.7]
[1746584670820,31.62,148.13,148.05,6.81340822]
[1746584671016,6.7533,148.09,148.06,6.7542]
[1746584671721,6.7535,148.08,148.06,6.7542]
[1746584673123,6.7535,148.08,148.05,6.7546]
[1746584674524,6.7535,148.08,148.06,6.7543]
[1746584675525,6.7535,148.08,148.05,6.7546]
[1746584676018,31.52,148.09,148.01,35.7685]
[1746584676222,31.52,148.09,148.01,33.723]
[1746584676625,6.7551,148.05,148.02,6.7559]
[1746584676827,31.52,148.09,148.01,33.723]
[1746584677124,6.7543,148.07,148.03,6.7553]
[1746584677424,31.52,148.09,148.03,6.7553]
[1746584677820,31.5,148.08,148.05,6.7543]
[1746584678221,6.7539,148.07,148.04,6.755]
[1746584679726,6.7539,148.07,148.05,6.7547]
[1746584679928,31.56,148.11,148.01,35.8852]
[1746584680128,31.5,148.1,148.01,67.3852]
[1746584680327,31.5,148.1,148.06,6.7541]
[1746584680523,31.5,148.1,148.01,67.3852]
[1746584680928,31.5,148.1,148.05,6.7545]
[1746584681130,6.7533,148.09,148.01,67.3852]
[1746584681429,6.7533,148.09,148.06,6.754]
[1746584682027,6.7533,148.09,148.01,67.3852]
[1746584682222,38.2527,148.1,148.03,7.18474077]
[1746584682416,31.5,148.1,148.03,7.18474077]
[1746584682617,31.5,148.1,148.07,6.7537]
[1746584684031,6.753,148.09,148.07,6.7537]
[1746584684829,38.2526,148.1,148.07,6.7537]
[1746584685434,6.7526,148.1,148.07,6.7537]
[1746584685931,69.7921,148.11,148.05,31.56]
[1746584686433,38.2321,148.11,148.05,31.56]
[1746584686628,6.7521,148.11,148.08,6.7531]
[1746584686933,31.46,148.12,148.05,31.56]
[1746584687233,6.7537,148.08,148.05,38.3145]
[1746584689128,31.46,148.12,148.03,7.18474077]
[1746584689341,31.46,148.12,148.02,31.56]
[1746584689835,7.18474077,148.1,148.0,159.65859443]
[1746584690037,37.9086,148.09,148.0,159.65859443]
[1746584690235,31.46,148.08,148.0,159.65859443]
[1746584690836,6.7559,148.03,148.0,166.41539443]
[1746584692036,6.7559,148.03,148.01,6.7565]
[1746584693038,38.1954,148.04,148.01,6.7565]
[1746584694233,6.7557,148.03,148.0,159.65859443]
[1746584694434,31.44,148.04,147.96,35.5734]
[1746584695039,6.757,148.01,147.97,6.7581]
[1746584695239,31.44,148.04,147.97,6.7581]
[1746584696029,6.7576,147.99,147.96,42.3321]
[1746584696240,31.44,148.04,147.96,35.5734]
[1746584696742,6.7573,148.0,147.97,6.7584]
[1746584697639,6.7575,147.99,147.96,42.3321]
[1746584698343,6.7572,148.0,147.97,6.7584]
[1746584698533,31.44,148.04,147.96,31.42]
[1746584698837,6.7579,147.99,147.96,31.42]
[1746584700137,38.1773,148.0,147.96,38.1786]
[1746584700539,31.42,148.0,147.96,38.1786]
[1746584700941,31.42,148.0,147.96,31.42]
[1746584701440,6.7578,147.99,147.96,31.42]
[1746584701643,6.7578,147.99,147.96,38.1788]
[1746584702342,31.42,148.0,147.96,31.42]
[1746584702841,31.42,148.0,147.98,6.7576]
[1746584705641,38.1774,148.0,147.96,31.42]
[1746584705843,31.42,148.0,147.96,31.42]
[1746584706341,31.42,148.05,147.97,7.18474077]
[1746584706643,31.4,148.06,147.97,7.18474077]
[1746584706837,31.4,148.06,148.02,6.7558]
[1746584707238,6.7549,148.05,148.02,6.7558]
[1746584707440,31.4,148.06,148.01,6.7564]
[1746584707946,6.7557,148.03,148.0,38.1969]
[1746584709348,31.4,148.06,148.0,31.44]
[1746584711445,31.4,148.06,147.99,6.7574]
[1746584711642,6.7561,148.03,147.99,6.7574]
[1746584712043,6.7561,148.03,148.0,6.757]
[1746584712239,6.7554,148.04,147.98,6.3059]
[1746584712444,6.7554,148.04,148.0,6.7568]
[1746584712644,6.7554,148.04,147.98,6.3059]
[1746584712842,38.1154,148.04,147.98,6.3059]
[1746584713042,38.1154,148.04,148.01,6.7563]
[1746584713243,31.36,148.04,147.98,6.3059]
[1746584714442,6.7559,148.03,148.0,6.7568]
[1746584714946,62.8,148.04,147.97,31.44]
[1746584715147,6.7574,148.0,147.97,31.44]
[1746584715347,62.8,148.04,147.97,31.44]
[1746584715651,6.7579,147.99,147.95,6.7592]
[1746584715842,31.36,148.0,147.95,6.7592]
[1746584716242,6.7587,147.97,147.94,38.1996]
[1746584716443,31.36,148.0,147.94,31.44]
[1746584716753,6.7593,147.95,147.94,31.44]
[1746584716949,62.8,148.0,147.94,31.44]
[1746584717140,62.8,148.0,147.92,6.3151]
[1746584717449,62.8,148.0,147.9,159.74117671]
[1746584718352,6.7603,147.93,147.87,7.18474077]
[1746584718850,6.76,147.94,147.89,6.7616]
[1746584719046,6.76,147.94,147.87,7.18474077]
[1746584719547,6.76,147.94,147.9,6.7612]
[1746584721954,6.7603,147.93,147.9,6.7612]
[1746584723741,6.76,147.94,147.9,6.7612]
[1746584724146,31.34,147.95,147.9,6.7612]
[1746584724647,6.7603,147.93,147.9,6.7612]
[1746584726353,6.7607,147.92,147.89,6.7619]
[1746584726554,31.34,147.95,147.86,31.44]
[1746584727558,6.7618,147.9,147.87,6.7627]
[1746584727858,31.32,147.91,147.86,31.44]
[1746584728957,6.7623,147.89,147.86,38.2034]
[1746584729159,31.32,147.91,147.86,31.44]
[1746584729564,6.7624,147.89,147.86,31.44]
[1746584729858,6.7624,147.89,147.85,13.0765]
[1746584730051,31.32,147.91,147.85,4.2055]
[1746584730358,31.32,147.91,147.84,6.7642]
[1746584730557,6.763,147.88,147.84,6.7642]
[1746584731058,6.763,147.88,147.85,6.7639]
[1746584731462,6.763,147.87,147.83,198.31719355]
[1746584731657,31.32,147.91,147.84,6.7641]
[1746584731959,6.7628,147.88,147.84,6.7641]
[1746584732561,6.7628,147.88,147.85,6.7638]
[1746584733258,6.7631,147.87,147.84,6.7641]
[1746584735061,6.7637,147.86,147.83,205.08179355]
[1746584735361,31.32,147.91,147.83,198.31719355]
[1746584735561,31.32,147.91,147.83,191.13245278]
[1746584735964,37.3905,147.91,147.83,191.13245278]
[1746584736262,6.7637,147.86,147.83,197.89695278]
[1746584736867,6.7644,147.84,147.83,191.13245278]
[1746584737058,6.7644,147.84,147.83,159.81245278]
[1746584737263,31.3,147.87,147.8,31.34]
[1746584737567,6.7642,147.85,147.8,31.34]
[1746584738163,6.7642,147.85,147.82,6.7652]
[1746584738366,6.7642,147.85,147.8,31.34]
[1746584739075,31.3,147.87,147.84,6.7644]
[1746584740567,31.3,147.87,147.83,6.7647]
[1746584740867,31.3,147.87,147.8,31.34]
[1746584741067,6.7646,147.84,147.81,6.7655]
[1746584741370,6.7646,147.84,147.8,31.34]
[1746584743171,6.7641,147.85,147.82,6.7652]
[1746584743370,31.3,147.87,147.8,31.34]
[1746584743770,6.7638,147.86,147.83,6.7646]
[1746584744168,31.3,147.87,147.83,6.7646]
[1746584744469,6.7635,147.86,147.83,6.7646]
[1746584744663,31.28,147.87,147.83,6.7646]
[1746584745173,6.7635,147.86,147.83,6.7646]
[1746584745469,31.28,147.87,147.82,6.765]
[1746584745772,6.7638,147.86,147.8,38.52474077]
[1746584746071,6.7638,147.86,147.83,6.7647]
[1746584747569,6.764,147.85,147.83,6.7647]
[1746584748367,6.7637,147.86,147.83,6.7647]
[1746584748772,31.28,147.87,147.83,6.7647]
[1746584748970,6.7635,147.86,147.83,6.7647]
[1746584749371,31.28,147.87,147.83,6.7647]
[1746584749773,6.7635,147.86,147.83,6.7647]
[1746584751278,6.7639,147.85,147.83,6.7647]
[1746584751671,31.28,147.87,147.83,6.7647]
[1746584752074,6.7637,147.86,147.83,6.7647]
[1746584753477,31.28,147.87,147.85,6.7639]
[1746584753679,37.4105,147.91,147.85,6.7639]
[1746584753982,6.7624,147.89,147.86,6.763]
[1746584755178,6.7627,147.88,147.86,6.763]
[1746584756376,6.7627,147.88,147.84,31.34]
[1746584756778,6.7627,147.88,147.85,6.7635]
[1746584759282,31.26,147.9,147.84,31.34]
[1746584760179,6.7637,147.86,147.84,31.34]
[1746584760574,31.24,147.89,147.84,31.34]
[1746584760771,31.24,147.89,147.85,6.7637]
[1746584761071,31.24,147.89,147.84,31.34]
[1746584761482,6.7628,147.88,147.84,38.1039]
[1746584763082,6.7628,147.88,147.85,6.7638]
[1746584763381,31.24,147.89,147.85,6.7638]
[1746584764282,6.763,147.87,147.84,38.1041]
[1746584764882,6.7633,147.87,147.84,38.1041]
[1746584770087,31.22,147.9,147.84,31.34]
[1746584770289,31.22,147.9,147.8,31.24]
[1746584770887,6.7646,147.84,147.81,6.7655]
[1746584771089,31.2,147.86,147.8,31.24]
[1746584771285,6.7651,147.83,147.8,38.006]
[1746584771784,6.7654,147.82,147.8,31.24]
[1746584771986,31.2,147.86,147.79,159.8733733]
[1746584772186,31.2,147.86,147.77,31.24]
[1746584772382,6.7659,147.81,147.78,6.7671]
[1746584772885,37.9653,147.82,147.77,31.24]
[1746584773092,31.18,147.85,147.77,38.42474077]
[1746584773390,31.18,147.88,147.8,7.18474077]
[1746584773596,6.7632,147.87,147.84,6.7643]
[1746584773781,31.18,147.88,147.81,37.466]
[1746584774793,37.9429,147.88,147.85,6.7636]
[1746584775293,31.18,147.88,147.83,7.18474077]
[1746584775488,31.18,147.91,147.86,6.7632]
[1746584775891,6.7626,147.88,147.85,6.7637]
[1746584777994,6.7629,147.88,147.85,6.7637]
[1746584780100,31.18,147.91,147.86,6.7633]
[1746584780491,31.18,147.91,147.82,7.18474077]
[1746584780997,6.7626,147.88,147.85,6.7635]
[1746584781700,31.18,147.91,147.82,7.18474077]
[1746584782299,6.7623,147.89,147.86,6.7632]
[1746584783692,6.7626,147.88,147.85,6.7637]
[1746584783895,6.7626,147.88,147.82,7.18474077]
[1746584784100,31.16,147.9,147.82,7.18474077]
[1746584784302,6.7627,147.88,147.82,7.18474077]
[1746584784802,6.7627,147.88,147.85,6.7637]
[1746584785803,6.7627,147.88,147.86,6.7633]
[1746584786003,6.7623,147.89,147.82,7.18474077]
[1746584786202,31.14,147.9,147.82,7.18474077]
[1746584786398,6.7629,147.88,147.85,6.7637]
[1746584790410,6.7629,147.88,147.86,6.7634]
[1746584790806,6.7623,147.89,147.86,6.7634]
[1746584791308,6.7629,147.88,147.85,6.7637]
[1746584792008,6.7623,147.89,147.86,6.7634]
[1746584792208,31.14,147.9,147.86,6.7634]
[1746584792507,6.7625,147.89,147.86,6.7634]
[1746584792703,31.14,147.9,147.85,6.7637]
[1746584792903,31.24,147.93,147.85,6.7637]
[1746584793103,31.12,147.92,147.85,6.7637]
[1746584793407,6.7628,147.88,147.85,6.7637]
[1746584794409,6.7628,147.88,147.86,6.7634]
[1746584795210,6.7623,147.89,147.86,6.7634]
[1746584795709,6.7623,147.89,147.87,6.7629]
[1746584795909,6.7623,147.89,147.82,7.18474077]
[1746584796209,6.7623,147.89,147.86,6.7631]
[1746584796407,6.7623,147.89,147.82,7.18474077]
[1746584796611,31.12,147.92,147.85,38.32474077]
[1746584796811,31.12,147.92,147.86,31.14]
[1746584797408,6.7608,147.92,147.89,6.7617]
[1746584798512,6.7608,147.92,147.9,6.7616]
[1746584798706,6.7605,147.93,147.9,6.7616]
[1746584798902,615.46,147.96,147.86,37.3179]